fUST/lending_fUST_20241228
["ID","MTS","AMOUNT","RATE_DAILY","PERIOD"]
[346909191,1735360240058,-1199.86,9.874e-05,2]
[346909193,1735360240067,-500.0,9.874e-05,2]
[346909194,1735360240076,-500.0,9.874e-05,2]
[346909195,1735360240086,-500.0,9.875e-05,2]
[346909196,1735360240095,-252.29372802,9.955e-05,2]
[346909197,1735360240105,-500.0,0.00010147,2]
[346909199,1735360240114,-6221.97,0.00010147,2]
[346909200,1735360240123,-634.22,0.00010147,2]
[346909201,1735360240132,-500.0,0.00010147,2]
[346909202,1735360240142,-500.0,0.00010147,2]
[346909203,1735360240151,-500.0,0.00010147,2]
[346909204,1735360240160,-2316.97,0.00010147,2]
[346909205,1735360240170,-500.0,0.00010148,2]
[346909206,1735360240179,-425.3170357,0.00010148,2]
[346909207,1735360240189,-500.0,0.00010148,2]
[346909208,1735360240198,-1199.86,0.00010148,2]
[346909209,1735360240208,-500.0,0.00010148,2]
[346909210,1735360240218,-500.0,0.00010148,2]
[346909211,1735360240228,-1168.42,0.00010148,2]
[346909212,1735360240238,-260.0,0.00010149,2]
[346909213,1735360240248,-255.29,0.00010149,2]
[346909214,1735360240257,-500.0,0.00010149,2]
[346909215,1735360240267,-264.44546092,0.0001042,2]
[346909216,1735360240278,-274.6402662,0.00010421,2]
[346909217,1735360240289,-6221.97,0.00010421,2]
[346909218,1735360240298,-500.0,0.00010421,2]
[346909219,1735360240307,-500.0,0.00010421,2]
[346909220,1735360240316,-500.0,0.00010421,2]
[346909221,1735360240326,-2316.97,0.00010421,2]
[346909222,1735360240335,-500.0,0.00010422,2]
[346909223,1735360240344,-1199.86,0.00010422,2]
[346909224,1735360240353,-500.0,0.00010422,2]
[346909225,1735360240362,-500.0,0.00010422,2]
[346909226,1735360240372,-500.0,0.00010423,2]
[346909227,1735360240381,-500.0,0.00010541,2]
[346909228,1735360240391,-1168.42,0.00010541,2]
[346909229,1735360240400,-500.0,0.00010695,2]
[346909230,1735360240409,-1775.19972596,0.00010695,2]
[346909231,1735360240422,-4446.77027404,0.00010695,2]
[346909232,1735360240431,-500.0,0.00010695,2]
[346909233,1735360240441,-500.0,0.00010695,2]
[346909234,1735360240455,-500.0,0.00010695,2]
[346909235,1735360240464,-1168.42,0.00010695,2]
[346909236,1735360240474,-2316.97,0.00010695,2]
[346909237,1735360240483,-500.0,0.00010696,2]
[346909238,1735360240493,-1199.86,0.00010696,2]
[346909239,1735360240503,-500.0,0.00010696,2]
[346909240,1735360240512,-500.0,0.00010696,2]
[346909241,1735360240522,-500.0,0.00010697,2]
[346909242,1735360240531,-151.0,0.00010697,2]
[346909243,1735360240542,-500.19360567,0.00010819,2]
[346909244,1735360240551,-500.0,0.00010819,2]
[346909245,1735360240562,-155.46273793,0.00010846,2]
[346909246,1735360240572,-500.52410688,0.00010846,2]
[346909247,1735360240582,-151.0,0.00010959,2]
[346909248,1735360240591,-151.0,0.00010959,2]
[346909249,1735360240599,-151.0,0.00010959,2]
[346909250,1735360240610,-280.61630849,0.00010969,2]
[346909251,1735360240620,-1435.30438704,0.00010969,2]
[346909252,1735360240632,-418.84793338,0.00010969,2]
[346909253,1735360240655,-500.0,9.873e-05,2]
[346909254,1735360240665,-1011.89765099,0.00010969,2]
[346909286,1735360246486,-482.99,0.00010147,2]
[346909287,1735360522105,161.6296555,8.591e-05,2]
[346909288,1735360532682,17014.55454,8.591e-05,2]
[346909290,1735360862020,504.1962798,8.573e-05,2]
[346909292,1735361060929,1373.7568889,8.667e-05,2]
[346909293,1735361155106,-300.0,9.05e-05,2]
[346909294,1735361155128,-500.0,9.051e-05,2]
[346909295,1735361155148,-500.0,9.051e-05,2]
[346909296,1735361155170,-500.0,9.051e-05,2]
[346909297,1735361155189,-205.13048991,9.051e-05,2]
[346909299,1735361246092,-294.86951009,9.051e-05,2]
[346909300,1735361246115,-1016.56,9.051e-05,2]
[346909301,1735361246138,-500.0,9.051e-05,2]
[346909302,1735361246162,-500.0,9.051e-05,2]
[346909303,1735361246185,-104.60469774,9.052e-05,2]
[346909304,1735361248100,-395.39530226,9.052e-05,2]
[346909305,1735361248121,-300.0,9.322e-05,2]
[346909306,1735361248142,-500.0,9.323e-05,2]
[346909307,1735361248165,-500.0,9.323e-05,2]
[346909308,1735361248186,-500.0,9.323e-05,2]
[346909309,1735361248206,-1471.62942708,9.323e-05,2]
[346909310,1735361254300,-277.99055866,9.323e-05,2]
[346909358,1735361432646,-300.0,9.322e-05,2]
[346909360,1735361432657,-2538.19001426,9.323e-05,2]
[346909362,1735361432667,-1786.22,9.323e-05,2]
[346909365,1735361432677,-500.0,9.323e-05,2]
[346909366,1735361432686,-541.52,9.324e-05,2]
[346909368,1735361432696,-500.0,9.324e-05,2]
[346909370,1735361432705,-500.0,9.324e-05,2]
[346909372,1735361432715,-448.18768937,9.324e-05,2]
[346909374,1735361432724,-537.77558522,9.324e-05,2]
[346909376,1735361432733,-4.26373447,9.324e-05,2]
[346909379,1735361432749,-495.455,9.324e-05,2]
[346909381,1735361432760,-0.28126553,9.324e-05,2]
[346909383,1735361432770,-421.21139093,9.324e-05,2]
[346909386,1735361432782,-309.05860907,9.324e-05,2]
[346909387,1735361432791,-500.0,9.324e-05,2]
[346909389,1735361432800,-500.0,9.324e-05,2]
[346909392,1735361432810,-500.0,9.324e-05,2]
[346909393,1735361432820,-500.0,9.325e-05,2]
[346909395,1735361432830,-407.84299058,9.325e-05,2]
[346909397,1735361432839,-1016.56,9.325e-05,2]
[346909399,1735361432848,-500.0,9.325e-05,2]
[346909401,1735361432858,-500.0,9.325e-05,2]
[346909403,1735361432867,-500.0,9.325e-05,2]
[346909406,1735361432877,-644.05303436,9.325e-05,2]
[346909408,1735361432887,-500.0,9.325e-05,2]
[346909410,1735361432896,-500.0,9.325e-05,2]
[346909411,1735361432905,-500.0,9.325e-05,2]
[346909413,1735361432915,-212.09096635,9.325e-05,2]
[346909416,1735361432924,-500.0,9.325e-05,2]
[346909418,1735361432934,-500.0,9.325e-05,2]
[346909419,1735361432943,-500.0,9.326e-05,2]
[346909421,1735361432953,-220.00403882,9.597e-05,2]
[346909424,1735361432963,-4287.81,9.597e-05,2]
[346909426,1735361432975,-1786.22,9.597e-05,2]
[346909428,1735361432984,-500.0,9.597e-05,2]
[346909430,1735361432993,-500.0,9.598e-05,2]
[346909432,1735361433007,-376.5760942,9.598e-05,2]
[346909434,1735361433016,-110.49174818,9.599e-05,2]
[346909455,1735361438577,-1153.346855,9.324e-05,2]
[346909456,1735361438589,-484.013145,9.324e-05,2]
[346909457,1735361438599,-1015.986855,9.598e-05,2]
[346909468,1735361440610,-621.373145,9.598e-05,2]
[346909469,1735361440620,-389.50825182,9.599e-05,2]
[346909470,1735361440630,-1016.56,9.599e-05,2]
[346909471,1735361440640,-500.0,9.6e-05,2]
[346909472,1735361440649,-4287.81,9.871e-05,2]
[346909473,1735361440659,-417.74480308,9.871e-05,2]
[346909474,1735361440671,-82.25519692,9.871e-05,2]
[346909475,1735361440681,-500.0,9.872e-05,2]
[346909476,1735361440691,-372.25233068,9.872e-05,2]
[346909477,1735361440703,-127.74766932,9.872e-05,2]
[346909478,1735361440713,-730.27,9.872e-05,2]
[346909479,1735361440722,-215.22267038,9.872e-05,2]
[346909480,1735361440734,-284.77732962,9.872e-05,2]
[346909481,1735361440744,-667.09150428,9.872e-05,2]
[346909482,1735361440756,-970.26849572,9.872e-05,2]
[346909484,1735361440765,-29.73150428,9.873e-05,2]
[346909514,1735361443599,-326.04203656,9.873e-05,2]
[346909516,1735361443609,-1016.56,9.873e-05,2]
[346909518,1735361443619,-223.9474785,9.874e-05,2]
[346909523,1735361443654,-276.0525215,9.874e-05,2]
[346909526,1735361443664,-223.944211,0.00010145,2]
[346909621,1735361637937,600.0,8.96e-05,2]
[346909623,1735362143267,233.6709296,8.455e-05,2]
[346909624,1735362338188,-500.0,9.051e-05,2]
[346909625,1735362338209,-1851.96383652,9.051e-05,2]
[346909626,1735362345107,-200.51304899,9.051e-05,2]
[346909627,1735362435099,-729.6773506,9.051e-05,2]
[346909628,1735362450094,-1126.09594936,9.051e-05,2]
[346909629,1735362450118,-814.74543102,9.324e-05,2]
[346909630,1735362452091,-185.25456898,9.324e-05,2]
[346909631,1735362452113,-500.0,9.325e-05,2]
[346909632,1735362452136,-109.49272598,9.325e-05,2]
[346909633,1735362477464,24879.7189761,8.594e-05,2]
[346909634,1735362585871,-323.01148496,9.051e-05,2]
[346909642,1735362632836,-300.0,9.324e-05,2]
[346909643,1735362632847,-7331.77746436,9.325e-05,2]
[346909644,1735362632858,-500.0,9.449e-05,2]
[346909645,1735362632867,-606.31907927,9.45e-05,2]
[346909646,1735362632877,-500.0,9.45e-05,2]
[346909647,1735362632886,-500.0,9.45e-05,2]
[346909648,1735362632896,-500.0,9.45e-05,2]
[346909649,1735362632906,-500.0,9.45e-05,2]
[346909650,1735362632915,-500.0,9.45e-05,2]
[346909651,1735362632926,-502.05683743,9.45e-05,2]
[346909652,1735362632937,-500.0,9.45e-05,2]
[346909653,1735362632947,-455.34811498,9.45e-05,2]
[346909654,1735362632956,-500.0,9.45e-05,2]
[346909655,1735362632965,-59.21700379,9.45e-05,2]
[346909656,1735362632978,-117.75530351,9.45e-05,2]
[346909657,1735362632987,-3742.5,9.45e-05,2]
[346909658,1735362632997,-1453.53,9.45e-05,2]
[346909659,1735362633006,-500.0,9.45e-05,2]
[346909660,1735362633016,-500.0,9.45e-05,2]
[346909661,1735362633025,-500.0,9.45e-05,2]
[346909662,1735362633035,-500.0,9.45e-05,2]
[346909663,1735362633045,-669.41,9.45e-05,2]
[346909664,1735362633055,-411.21036672,9.45e-05,2]
[346909665,1735362633064,-502.11716003,9.45e-05,2]
[346909666,1735362633073,-500.0,9.596e-05,2]
[346909667,1735362633083,-500.0,9.596e-05,2]
[346909668,1735362633096,-1000.0,9.598e-05,2]
[346909669,1735362633107,-500.0,9.723e-05,2]
[346909670,1735362633116,-3742.5,9.724e-05,2]
[346909671,1735362633127,-1453.53,9.724e-05,2]
[346909672,1735362633137,-500.0,9.724e-05,2]
[346909673,1735362633146,-500.0,9.724e-05,2]
[346909674,1735362633156,-669.41,9.869e-05,2]
[346909675,1735362633165,-500.0,9.87e-05,2]
[346909676,1735362633175,-500.0,9.87e-05,2]
[346909677,1735362633185,-1000.0,9.872e-05,2]
[346909678,1735362633194,-500.0,9.872e-05,2]
[346909679,1735362633203,-500.0,9.997e-05,2]
[346909680,1735362633212,-3742.5,9.998e-05,2]
[346909681,1735362633225,-1453.53,9.998e-05,2]
[346909682,1735362633233,-500.56020263,9.998e-05,2]
[346909683,1735362633243,-190.30718373,0.0001,2]
[346909684,1735362633252,-500.0,0.00010144,2]
[346909685,1735362633262,-13.35939336,0.00010144,2]
[346909698,1735362638744,-526.17263154,0.00010144,2]
[346909699,1735362638754,-1000.0,0.00010146,2]
[346909700,1735362638764,-500.0,0.00010146,2]
[346909701,1735362638773,-373.0,0.00010256,2]
[346909702,1735362638783,-500.0,0.00010271,2]
[346909703,1735362638792,-1467.42235055,0.00010272,2]
[346909716,1735362643789,-2275.07764945,0.00010272,2]
[346909717,1735362643799,-1453.53,0.00010272,2]
[346909718,1735362643808,-669.41,0.00010417,2]
[346909719,1735362643817,-500.0,0.00010418,2]
[346909720,1735362643826,-1000.0,0.0001042,2]
[346909721,1735362643835,-500.0,0.0001042,2]
[346909722,1735362643844,-500.0,0.00010545,2]
[346909723,1735362643853,-3742.5,0.00010546,2]
[346909724,1735362643864,-1453.53,0.00010546,2]
[346909726,1735362643873,-298.03748315,0.000106,2]
[346909764,1735363405999,1150.71,8.985e-05,2]
[346909765,1735363556147,-500.0,9.231e-05,2]
[346909766,1735363556169,-500.0,9.324e-05,2]
[346909767,1735363556193,-500.0,9.449e-05,2]
[346909768,1735363556215,-300.0,9.449e-05,2]
[346909769,1735363556234,-357.8579733,9.45e-05,2]
[346909770,1735363556254,-500.0,9.45e-05,2]
[346909771,1735363556274,-500.0,9.45e-05,2]
[346909772,1735363556402,-500.0,9.45e-05,2]
[346909773,1735363556424,-500.0,9.45e-05,2]
[346909774,1735363556445,-500.0,9.45e-05,2]
[346909775,1735363556466,-500.0,9.45e-05,2]
[346909776,1735363556489,-500.0,9.45e-05,2]
[346909777,1735363556510,-443.90756229,9.45e-05,2]
[346909778,1735363558094,-56.09243771,9.45e-05,2]
[346909779,1735363558116,-475.34034687,9.45e-05,2]
[346909780,1735363651137,-194.08413803,9.355e-05,2]
[346909781,1735363652099,-105.91586197,9.355e-05,2]
[346909782,1735363652121,-300.0,9.449e-05,2]
[346909783,1735363652142,-2.53544748,9.45e-05,2]
[346909784,1735363652170,-22.12420565,9.45e-05,2]
[346909785,1735363652190,-427.87579435,9.45e-05,2]
[346909826,1735363831881,-1093.45334561,9.356e-05,2]
[346909828,1735363831892,-1135.63,9.449e-05,2]
[346909830,1735363831904,-72.12420565,9.45e-05,2]
[346909832,1735363831915,-500.0,9.45e-05,2]
[346909834,1735363831927,-500.0,9.45e-05,2]
[346909836,1735363831939,-500.0,9.596e-05,2]
[346909839,1735363831950,-500.0,9.723e-05,2]
[346909841,1735363831962,-1135.63,9.723e-05,2]
[346909843,1735363831972,-500.0,9.87e-05,2]
[346909845,1735363831983,-500.0,9.996e-05,2]
[346909847,1735363831995,-2962.81,9.996e-05,2]
[346909849,1735363832006,-585.74,9.996e-05,2]
[346909851,1735363832017,-500.0,9.997e-05,2]
[346909853,1735363832027,-1501.53,9.997e-05,2]
[346909855,1735363832037,-351.03,9.997e-05,2]
[346909856,1735363832047,-500.0,9.997e-05,2]
[346909857,1735363832057,-208.08,9.997e-05,2]
[346909858,1735363832067,-394.26,9.997e-05,2]
[346909859,1735363832076,-571.91072874,9.997e-05,2]
[346909860,1735363832087,-500.0,9.997e-05,2]
[346909861,1735363832097,-1135.63,9.997e-05,2]
[346909862,1735363832108,-500.0,0.00010144,2]
[346909863,1735363832119,-2962.81,0.0001027,2]
[346909864,1735363832130,-500.0,0.00010271,2]
[346909865,1735363832144,-1501.53,0.00010271,2]
[346909866,1735363832155,-500.0,0.00010271,2]
[346909867,1735363832166,-1135.63,0.00010271,2]
[346909868,1735363832177,-500.0,0.00010418,2]
[346909869,1735363832187,-402.8905303,0.00010419,2]
[346909870,1735363832197,-500.0,0.00010419,2]
[346909871,1735363832206,-2962.81,0.00010544,2]
[346909872,1735363832216,-500.0,0.00010545,2]
[346909873,1735363832228,-1501.53,0.00010545,2]
[346909874,1735363832241,-500.0,0.00010545,2]
[346909875,1735363832252,-1135.63,0.00010545,2]
[346909876,1735363832262,-701.96251685,0.000106,2]
[346909877,1735363832275,-284.78216107,0.0001069,2]
[346909878,1735363832285,-175.93571963,0.0001069,2]
[346909879,1735363832295,-331.45556365,0.00010691,2]
[346909880,1735363832306,-500.0,0.00010691,2]
[346909881,1735363832316,-500.0,0.00010691,2]
[346909882,1735363832326,-500.0,0.00010691,2]
[346909883,1735363832336,-500.0,0.00010691,2]
[346909884,1735363832347,-500.0,0.00010691,2]
[346909885,1735363832357,-500.0,0.00010691,2]
[346909886,1735363832368,-502.49106974,0.00010691,2]
[346909887,1735363832379,-500.0,0.00010691,2]
[346909888,1735363832389,-500.0,0.00010691,2]
[346909889,1735363832402,-500.0,0.00010691,2]
[346909890,1735363832413,-500.0,0.00010691,2]
[346909891,1735363832424,-500.0,0.00010691,2]
[346909892,1735363832436,-500.0,0.00010691,2]
[346909893,1735363832446,-500.0,0.00010691,2]
[346909894,1735363832457,-500.0,0.00010691,2]
[346909895,1735363832468,-500.0,0.00010691,2]
[346909896,1735363832479,-500.0,0.00010691,2]
[346909897,1735363832490,-500.0,0.00010691,2]
[346909898,1735363832500,-500.0,0.00010691,2]
[346909899,1735363832511,-500.0,0.00010691,2]
[346909900,1735363832521,-500.0,0.00010691,2]
[346909901,1735363832532,-500.0,0.00010691,2]
[346909902,1735363832542,-500.83277182,0.00010691,2]
[346909903,1735363832552,-500.0,0.00010691,2]
[346909904,1735363832563,-500.0,0.00010691,2]
[346909905,1735363832573,-500.0,0.00010691,2]
[346909906,1735363832719,-500.0,0.00010691,2]
[346909907,1735363832730,-500.0,0.00010691,2]
[346909908,1735363832740,-500.0,0.00010691,2]
[346909909,1735363832750,-500.0,0.00010691,2]
[346909910,1735363832759,-500.0,0.00010691,2]
[346909911,1735363832769,-197.29548316,0.00010691,2]
[346909912,1735363832778,-500.77773333,0.00010691,2]
[346909913,1735363832789,-500.0,0.00010691,2]
[346909914,1735363832798,-500.0,0.00010691,2]
[346909915,1735363832808,-575.85214423,0.00010691,2]
[346909916,1735363832819,-500.0,0.00010691,2]
[346909917,1735363832828,-500.0,0.00010691,2]
[346909918,1735363832837,-563.16787645,0.00010691,2]
[346909919,1735363832848,-500.0,0.00010691,2]
[346909920,1735363832858,-500.0,0.00010691,2]
[346909921,1735363832867,-500.0,0.00010691,2]
[346909922,1735363832878,-500.0,0.00010691,2]
[346909923,1735363832888,-500.0,0.00010691,2]
[346909924,1735363832898,-500.0,0.00010691,2]
[346909925,1735363832907,-500.0,0.00010691,2]
[346909926,1735363832917,-201.16247913,0.00010691,2]
[346909927,1735363832927,-500.0,0.00010691,2]
[346909928,1735363832936,-527.5,0.00010691,2]
[346909929,1735363832945,-500.0,0.00010691,2]
[346909930,1735363832955,-500.86396231,0.00010691,2]
[346909931,1735363832964,-500.0,0.00010691,2]
[346909932,1735363832974,-500.0,0.00010691,2]
[346909933,1735363832983,-500.0,0.00010691,2]
[346909934,1735363832993,-500.0,0.00010691,2]
[346909935,1735363833003,-500.0,0.00010691,2]
[346909936,1735363833013,-500.0,0.00010691,2]
[346909937,1735363833022,-500.0,0.00010691,2]
[346909938,1735363833032,-500.0,0.00010691,2]
[346909939,1735363833042,-500.0,0.00010691,2]
[346909940,1735363833052,-467.13251634,0.00010691,2]
[346909955,1735363839802,-312.2633,0.00010419,2]
[346909956,1735363839814,-187.7367,0.00010419,2]
[346909957,1735363839823,-32.86748366,0.00010691,2]
[346909958,1735363839833,-500.0,0.00010691,2]
[346909959,1735363839842,-323.09581634,0.00010691,2]
[346909960,1735363839863,-179.34698478,0.00010691,2]
[346909961,1735363839872,-114.84771522,0.00010691,2]
[346909965,1735363842834,-500.0,9.996e-05,2]
[346909966,1735363842844,-500.0,0.00010269,2]
[346909967,1735363842854,-500.0,0.0001027,2]
[346909968,1735363842863,-500.0,0.00010544,2]
[346909969,1735363842873,-385.15228478,0.00010691,2]
[346909970,1735363842883,-500.0,0.00010691,2]
[346909971,1735363842893,-500.0,0.00010691,2]
[346909974,1735363842903,-203.53211893,0.00010691,2]
[346909977,1735363842913,-237.27006419,0.00010691,2]
[346909978,1735363842922,-500.0,0.00010691,2]
[346909979,1735363842933,-500.0,0.00010691,2]
[346909980,1735363842943,-500.0,0.00010691,2]
[346909981,1735363842953,-500.0,0.00010691,2]
[346909982,1735363842962,-500.0,0.00010691,2]
[346909983,1735363842971,-500.0,0.00010691,2]
[346909984,1735363842980,-500.0,0.00010691,2]
[346909985,1735363842990,-500.0,0.00010691,2]
[346909986,1735363842999,-500.0,0.00010691,2]
[346909987,1735363843009,-500.0,0.00010691,2]
[346909988,1735363843018,-500.0,0.00010691,2]
[346909989,1735363843028,-500.0,0.00010691,2]
[346909990,1735363843037,-151.0,0.00010691,2]
[346909991,1735363843046,-500.0,0.00010691,2]
[346909992,1735363843056,-197.00578906,0.00010692,2]
[346909993,1735363843065,-2962.81,0.00010818,2]
[346909994,1735363843076,-585.74,0.00010818,2]
[346909995,1735363843086,-1501.53,0.00010819,2]
[346909996,1735363843095,-500.0,0.00010819,2]
[346909997,1735363843105,-1135.63,0.00010819,2]
[346909998,1735363843114,-369.9105854,0.00010859,2]
[346909999,1735363843123,-7624.50316386,0.00010869,2]
[346910000,1735363843136,-913.04633889,0.00010869,2]
[346910001,1735363843145,-151.0,0.00010959,2]
[346910002,1735363843154,-151.0,0.00010959,2]
[346910003,1735363843164,-151.0,0.00010959,2]
[346910004,1735363843173,-151.0,0.00010959,2]
[346910005,1735363843183,-4347.5293248,0.00010959,2]
[346910006,1735363843192,-151.0,0.00010959,2]
[346910007,1735363843202,-151.0,0.00010959,2]
[346910008,1735363843212,-151.0,0.00010959,2]
[346910009,1735363843221,-151.0,0.00010959,2]
[346910010,1735363843231,-152.608709,0.00010959,2]
[346910011,1735363843240,-153.953308,0.00010959,2]
[346910012,1735363843253,-151.0,0.00010959,2]
[346910013,1735363843262,-151.0,0.00010959,2]
[346910014,1735363843271,-195.29,0.00010965,2]
[346910015,1735363843281,-157.92,0.00010965,2]
[346910016,1735363843292,-500.0,0.00010965,2]
[346910017,1735363843302,-450.5786675,0.00010968,2]
[346910018,1735363843311,-2962.81,0.00011092,2]
[346910019,1735363843322,-585.74,0.00011092,2]
[346910020,1735363843331,-151.0,0.00011093,2]
[346910021,1735363843341,-151.0,0.00011093,2]
[346910022,1735363843351,-151.0,0.00011093,2]
[346910023,1735363843361,-533.84395056,0.00011093,2]
[346910024,1735363843377,-967.68604944,0.00011093,2]
[346910025,1735363843386,-500.0,0.00011093,2]
[346910026,1735363843396,-151.0,0.00011093,2]
[346910027,1735363843405,-1135.63,0.00011093,2]
[346910028,1735363843415,-240.104377,0.00011241,2]
[346910029,1735363843424,-2962.81,0.00011366,2]
[346910030,1735363843434,-151.0,0.00011366,2]
[346910031,1735363843444,-1501.53,0.00011367,2]
[346910032,1735363843453,-500.0,0.00011367,2]
[346910033,1735363843463,-1135.63,0.00011367,2]
[346910034,1735363843472,-2962.81,0.0001164,2]
[346910035,1735363843482,-153.162162,0.0001164,2]
[346910036,1735363843491,-151.0,0.00011641,2]
[346910037,1735363843502,-151.0,0.00011641,2]
[346910038,1735363843511,-1501.53,0.00011641,2]
[346910039,1735363843521,-500.0,0.00011641,2]
[346910040,1735363843530,-201.14616,0.00011641,2]
[346910041,1735363843539,-1135.63,0.00011641,2]
[346910042,1735363843548,-167.87517468,0.00011914,2]
[346910267,1735364228055,276.39046921,8.979e-05,2]
[346910281,1735364243531,276.39046921,8.979e-05,2]
[346910310,1735364258452,276.39046921,8.979e-05,2]
[346910321,1735364274405,276.39046921,8.979e-05,2]
[346910326,1735364289320,276.39046921,8.979e-05,2]
[346910336,1735364304783,276.39046921,8.979e-05,2]
[346910339,1735364319913,276.39046921,8.979e-05,2]
[346910350,1735364335184,276.39046921,8.979e-05,2]
[346910354,1735364350065,276.39046921,8.979e-05,2]
[346910358,1735364365495,276.39046921,8.979e-05,2]
[346910368,1735364381003,276.39046921,8.979e-05,2]
[346910372,1735364396401,276.39046921,8.979e-05,2]
[346910379,1735364413728,276.39046921,8.979e-05,2]
[346910405,1735364428575,276.39046921,8.979e-05,2]
[346910412,1735364443578,276.39046921,8.979e-05,2]
[346910415,1735364458274,276.39046921,8.979e-05,2]
[346910418,1735364473444,276.39046921,8.979e-05,2]
[346910423,1735364489515,276.39046921,8.979e-05,2]
[346910443,1735364598999,276.39046921,8.979e-05,2]
[346910602,1735364747159,-437.27323516,9.162e-05,2]
[346910603,1735364747185,-1225.0904025,9.304e-05,2]
[346910604,1735364747206,-502.1249605,9.449e-05,2]
[346910605,1735364747228,-250.30539632,9.996e-05,2]
[346910606,1735364830147,-277.99055866,9.723e-05,2]
[346910607,1735364841101,-222.00944134,9.723e-05,2]
[346910608,1735364841125,-749.69460368,9.996e-05,2]
[346910609,1735364841151,-500.0,9.996e-05,2]
[346910610,1735364841172,-500.0,9.996e-05,2]
[346910611,1735364841194,-275.32811021,9.997e-05,2]
[346910612,1735364841217,-6.87336131,9.997e-05,2]
[346910613,1735364850102,-493.57793629,9.997e-05,2]
[346910614,1735364850125,-300.0,0.00010267,2]
[346910615,1735364850153,-500.0,0.00010268,2]
[346910616,1735364850177,-500.0,0.00010268,2]
[346910617,1735364850203,-500.0,0.00010268,2]
[346910618,1735364850224,-500.0,0.00010268,2]
[346910619,1735364850245,-439.93,0.00010268,2]
[346910620,1735364850267,-107.65945106,0.00010268,2]
[346910671,1735365032160,-180.21521658,0.00010168,2]
[346910672,1735365032170,-300.0,0.00010267,2]
[346910673,1735365032181,-392.34054894,0.00010268,2]
[346910674,1735365032192,-500.0,0.00010268,2]
[346910675,1735365032201,-503.68,0.00010268,2]
[346910676,1735365032211,-500.0,0.00010268,2]
[346910677,1735365032220,-385.48231832,0.00010268,2]
[346910678,1735365032230,-500.0,0.00010268,2]
[346910679,1735365032240,-2091.66,0.00010268,2]
[346910680,1735365032249,-500.0,0.00010268,2]
[346910681,1735365032259,-500.0,0.00010268,2]
[346910682,1735365032269,-500.0,0.00010268,2]
[346910683,1735365032282,-500.0,0.00010268,2]
[346910684,1735365032291,-500.0,0.00010268,2]
[346910685,1735365032300,-500.0,0.00010268,2]
[346910686,1735365032310,-500.0,0.00010268,2]
[346910687,1735365032320,-510.64356982,0.00010268,2]
[346910688,1735365032440,-500.0,0.00010268,2]
[346910689,1735365032453,-500.0,0.00010268,2]
[346910690,1735365032463,-500.0,0.00010268,2]
[346910691,1735365032472,-500.0,0.00010268,2]
[346910692,1735365032482,-500.0,0.00010268,2]
[346910693,1735365032491,-500.0,0.00010268,2]
[346910694,1735365032501,-500.0,0.00010268,2]
[346910695,1735365032510,-241.76081052,0.00010268,2]
[346910696,1735365032519,-500.0,0.00010268,2]
[346910697,1735365032529,-500.0,0.00010268,2]
[346910698,1735365032538,-500.0,0.00010268,2]
[346910699,1735365032547,-505.71887033,0.00010268,2]
[346910700,1735365032556,-500.0,0.00010268,2]
[346910701,1735365032565,-500.0,0.00010268,2]
[346910702,1735365032575,-500.0,0.00010268,2]
[346910703,1735365032584,-500.0,0.00010268,2]
[346910704,1735365032594,-360.47370747,0.00010268,2]
[346910705,1735365032603,-500.0,0.00010268,2]
[346910706,1735365032613,-500.0,0.00010268,2]
[346910707,1735365032622,-500.0,0.00010268,2]
[346910708,1735365032631,-500.9015902,0.00010268,2]
[346910709,1735365032641,-500.0,0.00010268,2]
[346910710,1735365032650,-500.0,0.00010268,2]